fUSD/lending_fUSD_20260122
["ID","MTS","AMOUNT","RATE_DAILY","PERIOD"]
[403025734,1769080254575,-515.33,0.00041095,60]
[403025735,1769080254584,-500.0,0.00041095,60]
[403025736,1769080254594,-500.0,0.00041095,60]
[403025737,1769080254603,-500.0,0.00041095,60]
[403025738,1769080254613,-592.57,0.00041095,60]
[403025739,1769080254622,-603.34,0.00041095,60]
[403025740,1769080254632,-184.52075061,0.00041095,60]
[403025741,1769080254644,-315.47924939,0.00041095,60]
[403025742,1769080254653,-500.0,0.00041095,60]
[403025743,1769080254663,-500.0,0.00041095,60]
[403025744,1769080254672,-185.23383422,0.00041095,60]
[403025745,1769080254681,-500.0,0.00041095,60]
[403025746,1769080254690,-366.15654735,0.00041095,60]
[403025747,1769080254699,-500.0,0.00041095,60]
[403025748,1769080254709,-581.86,0.00041095,60]
[403025749,1769080254718,-500.0,0.00041095,60]
[403025750,1769080254727,-500.0,0.00041095,60]
[403025751,1769080254736,-698.14,0.00041095,60]
[403025752,1769080254746,-604.54623737,0.00041095,60]
[403025753,1769080254755,-500.0,0.00041095,60]
[403025754,1769080254764,-500.0,0.00041095,60]
[403025755,1769080254773,-500.0,0.00041095,60]
[403025756,1769080254782,-500.0,0.00041095,60]
[403025757,1769080254791,-500.0,0.00041095,60]
[403025758,1769080254801,-500.0,0.00041095,60]
[403025759,1769080254810,-195.8029264,0.00041095,60]
[403025760,1769080254823,-337.11347118,0.00041095,60]
[403025761,1769080254832,-500.0,0.00041095,60]
[403025762,1769080254842,-500.0,0.00041095,60]
[403025763,1769080254851,-500.0,0.00041095,14]
[403025764,1769080254860,-500.0,0.00041095,60]
[403025765,1769080254869,-575.79025305,0.00041095,60]
[403025766,1769080254878,-507.60263119,0.00041095,60]
[403025767,1769080254888,-500.0,0.00041095,60]
[403025768,1769080254897,-500.0,0.00041095,60]
[403025769,1769080254907,-500.0,0.00041095,60]
[403025770,1769080254916,-500.0,0.00041095,60]
[403025771,1769080254925,-605.35,0.00041095,60]
[403025772,1769080254935,-513.78967446,0.00041095,60]
[403025773,1769080254944,-500.0,0.00041095,60]
[403025774,1769080254953,-500.0,0.00041095,60]
[403025775,1769080254962,-500.0,0.00041095,60]
[403025776,1769080254972,-571.360012,0.00041095,60]
[403025777,1769080254981,-332.77782274,0.00041095,60]
[403025778,1769080254994,-167.22217726,0.00041095,60]
[403025779,1769080255003,-500.0,0.00041095,60]
[403025780,1769080255012,-480.22281482,0.00041095,60]
[403025781,1769080255023,-500.0,0.00041095,60]
[403025782,1769080255032,-500.0,0.00041095,60]
[403025783,1769080255041,-524.52029076,0.00041095,60]
[403025784,1769080255050,-500.0,0.00041095,60]
[403025785,1769080255059,-500.0,0.00041095,30]
[403025786,1769080255069,-500.0,0.00041095,60]
[403025787,1769080255078,-500.0,0.00041095,60]
[403025788,1769080255088,-500.0,0.00041095,60]
[403025789,1769080255097,-751.6,0.00041095,60]
[403025790,1769080255107,-673.96,0.00041095,60]
[403025791,1769080255116,-500.0,0.00041095,60]
[403025792,1769080255126,-500.0,0.00041095,60]
[403025793,1769080255135,-500.0,0.00041095,60]
[403025794,1769080255144,-500.0,0.00041095,60]
[403025795,1769080255154,-480.02337868,0.00041095,60]
[403025796,1769080255167,-19.97662132,0.00041095,60]
[403025797,1769080255177,-500.0,0.00041095,60]
[403025798,1769080255186,-500.0,0.00041095,30]
[403025799,1769080255195,-500.0,0.00041095,60]
[403025800,1769080255205,-500.0,0.00041095,60]
[403025801,1769080255214,-500.0,0.00041095,60]
[403025802,1769080255223,-500.0,0.00041095,60]
[403025803,1769080255232,-500.0,0.00041095,60]
[403025804,1769080255243,-518.89318818,0.00041095,60]
[403025805,1769080255252,-500.0,0.00041095,60]
[403025806,1769080255262,-500.0,0.00041095,60]
[403025807,1769080255272,-500.0,0.00041095,60]
[403025808,1769080255282,-638.56,0.00041095,60]
[403025809,1769080255292,-500.0,0.00041095,60]
[403025810,1769080255301,-500.0,0.00041095,60]
[403025811,1769080255310,-500.0,0.00041095,60]
[403025812,1769080255320,-500.0,0.00041095,60]
[403025813,1769080255329,-500.0,0.00041095,60]
[403025814,1769080255339,-266.41042539,0.00041095,60]
[403025815,1769080255364,-303.028913,0.00036986,31]
[403025816,1769080255374,-233.58957461,0.00041095,60]
[403025817,1769080255383,-139.21375911,0.00041095,60]
[403025818,1769080255395,-360.78624089,0.00041095,60]
[403025819,1769080255405,-500.0,0.00041095,60]
[403025820,1769080255415,-500.0,0.00041095,60]
[403025821,1769080255427,-500.0,0.00041095,60]
[403025822,1769080255439,-500.0,0.00041095,60]
[403025823,1769080255448,-500.0,0.00041095,60]
[403025824,1769080255459,-533.08426854,0.00041095,60]
[403025825,1769080255469,-168.12947057,0.00041095,60]
[403025826,1769080255481,-331.87052943,0.00041095,60]
[403025827,1769080255490,-500.0,0.00041095,60]
[403025828,1769080255500,-501.10757186,0.00041095,60]
[403025829,1769080255510,-500.0,0.00041095,60]
[403025830,1769080255520,-500.0,0.00041095,60]
[403025831,1769080255530,-500.0,0.00041095,60]
[403025832,1769080255539,-500.0,0.00041095,60]
[403025833,1769080255549,-500.0,0.00041095,60]
[403025834,1769080255558,-500.0,0.00041095,60]
[403025835,1769080255567,-318.92675496,0.00041095,60]
[403025836,1769080255576,-500.0,0.00041095,60]
[403025837,1769080255586,-500.0,0.00041095,60]
[403025838,1769080255596,-541.95,0.00041095,60]
[403025839,1769080255605,-500.0,0.00041095,60]
[403025840,1769080255618,-500.0,0.00041095,60]
[403025841,1769080255628,-500.0,0.00041095,60]
[403025842,1769080255637,-500.0,0.00041095,60]
[403025843,1769080255646,-500.0,0.00041095,60]
[403025844,1769080255656,-1708.15378179,0.00041095,15]
[403025845,1769080255669,-3864.46995742,0.00041095,15]
[403025846,1769080256088,-416.05467131,0.00024772,2]
[403025847,1769080256100,-83.94532869,0.00024772,2]
[403025848,1769080256109,-351.63677431,0.00024773,2]
[403025849,1769080256987,-148.36322569,0.00024773,2]
[403025850,1769080256997,-500.0,0.00024774,2]
[403025851,1769080257006,-240.57297942,0.00024775,2]
[403025852,1769080257017,-259.42692058,0.00024775,2]
[403025853,1769080257027,-90.44354283,0.00036226,30]
[403025854,1769080257043,-260.55645717,0.00036226,30]
[403025855,1769080257052,-303.028913,0.00036986,31]
[403025856,1769080257061,-11.74686391,0.00036986,31]
[403025857,1769080257109,-291.28204909,0.00036986,31]
[403025858,1769080257119,-182.45885806,0.00036986,31]
[403025859,1769080257130,-120.57005494,0.00036986,31]
[403025860,1769080257139,-303.028913,0.00036986,31]
[403025861,1769080257149,-303.028913,0.00036986,31]
[403025862,1769080257158,-32.85320549,0.00036986,31]
[403025863,1769080257169,-270.17570751,0.00036986,31]
[403025864,1769080257179,-151.0,0.00036986,31]
[403025865,1769080257189,-303.028913,0.00036986,31]
[403025866,1769080257198,-151.0,0.00036986,31]
[403025867,1769080257208,-303.028913,0.00036986,31]
[403025868,1769080257217,-151.0,0.00036986,31]
[403025869,1769080257227,-303.028913,0.00036986,31]
[403025870,1769080257236,-151.0,0.00036986,31]
[403025871,1769080257246,-266.17011354,0.00036986,31]
[403025872,1769080257258,-36.85879946,0.00036986,31]
[403025873,1769080257267,-151.0,0.00036986,31]
[403025874,1769080257276,-151.0,0.00036986,31]
[403025875,1769080257285,-303.028913,0.00036986,31]
[403025876,1769080257295,-151.0,0.00036986,31]
[403025877,1769080257304,-151.0,0.00036986,31]
[403025878,1769080257313,-303.028913,0.00036986,31]
[403025879,1769080257323,-151.0,0.00036986,31]
[403025880,1769080257333,-151.0,0.00036986,31]
[403025881,1769080257342,-303.028913,0.00036986,31]
[403025882,1769080257351,-303.028913,0.0004,120]
[403025883,1769080257360,-303.028913,0.0004,120]
[403025884,1769080257369,-151.0,0.0004,120]
[403025885,1769080257378,-303.028913,0.0004,120]
[403025886,1769080257387,-4677.73914904,0.00041095,15]
[403025887,1769080257396,-500.0,0.00041095,60]
[403025888,1769080257405,-500.0,0.00041095,60]
[403025889,1769080257415,-500.0,0.00041095,60]
[403025890,1769080257424,-500.0,0.00041095,60]
[403025891,1769080257437,-500.0,0.00041095,60]
[403025892,1769080257447,-504.32739522,0.00041095,60]
[403025893,1769080257456,-500.0,0.00041095,60]
[403025894,1769080257471,-500.0,0.00041095,60]
[403025895,1769080257481,-500.0,0.00041095,60]
[403025896,1769080257491,-500.0,0.00041095,60]
[403025897,1769080257502,-500.0,0.00041095,60]
[403025898,1769080257511,-500.0,0.00041095,60]
[403025899,1769080257520,-500.0,0.00041095,60]
[403025900,1769080257529,-500.0,0.00041095,60]
[403025901,1769080257538,-500.0,0.00041095,60]
[403025902,1769080257547,-500.0,0.00041095,60]
[403025903,1769080257556,-500.0,0.00041095,60]
[403025904,1769080257566,-500.0,0.00041095,60]
[403025905,1769080257575,-500.0,0.00041095,60]
[403025906,1769080257585,-500.0,0.00041095,60]
[403025907,1769080257594,-518.31925841,0.00041095,60]
[403025908,1769080257604,-500.0,0.00041095,60]
[403025909,1769080257613,-500.0,0.00041095,60]
[403025910,1769080257622,-618.42,0.00041095,60]
[403025911,1769080257632,-500.0,0.00041095,60]
[403025912,1769080257641,-557.01615111,0.00041095,60]
[403025913,1769080257651,-571.8,0.00041095,60]
[403025914,1769080257660,-500.0,0.00041095,60]
[403025915,1769080257670,-500.0,0.00041095,60]
[403025916,1769080257679,-531.06965985,0.00041095,60]
[403025917,1769080257688,-500.0,0.00041095,60]
[403025918,1769080257697,-500.0,0.00041095,60]
[403025919,1769080257706,-511.88743046,0.00041095,60]
[403025920,1769080257715,-500.0,0.00041095,60]
[403025921,1769080257725,-505.17600782,0.00041095,60]
[403025922,1769080257734,-503.91397637,0.00041095,60]
[403025923,1769080257743,-500.0,0.00041095,60]
[403025924,1769080257752,-500.0,0.00041095,60]
[403025925,1769080257761,-500.0,0.00041095,60]
[403025926,1769080257771,-500.0,0.00041095,60]
[403025927,1769080257780,-500.0,0.00041095,60]
[403025928,1769080257790,-500.0,0.00041095,60]
[403025929,1769080257805,-500.0,0.00041095,60]
[403025930,1769080257814,-500.0,0.00041095,60]
[403025931,1769080257823,-520.56920769,0.00041095,60]
[403025932,1769080257832,-546.56008145,0.00041095,60]
[403025933,1769080257842,-514.83967002,0.00041095,60]
[403025934,1769080257851,-500.0,0.00041095,60]
[403025935,1769080257860,-500.0,0.00041095,60]
[403025936,1769080257869,-500.0,0.00041095,60]
[403025937,1769080257878,-500.0,0.00041095,60]
[403025938,1769080257888,-500.0,0.00041095,60]
[403025939,1769080257897,-500.0,0.00041095,60]
[403025940,1769080257906,-500.0,0.00041095,60]
[403025941,1769080257915,-500.0,0.00041095,60]
[403025942,1769080257925,-500.0,0.00041095,60]
[403025943,1769080257934,-500.0,0.00041095,60]
[403025944,1769080257943,-512.69454024,0.00041095,60]
[403025945,1769080257952,-500.0,0.00041095,60]
[403025946,1769080257961,-500.0,0.00041095,60]
[403025947,1769080257970,-500.0,0.00041095,60]
[403025948,1769080257980,-500.0,0.00041095,60]
[403025949,1769080257989,-500.0,0.00041095,60]
[403025950,1769080257999,-500.0,0.00041095,60]
[403025951,1769080258008,-500.0,0.00041095,60]
[403025952,1769080258017,-500.0,0.00041095,60]
[403025953,1769080258026,-500.10401582,0.00041095,60]
[403025954,1769080258036,-500.0,0.00041095,60]
[403025955,1769080258045,-500.0,0.00041095,60]
[403025956,1769080258054,-500.0,0.00041095,60]
[403025957,1769080258063,-504.67903034,0.00041095,60]
[403025958,1769080258072,-500.0,0.00041095,60]
[403025959,1769080258082,-516.29,0.00041095,60]
[403025960,1769080258092,-477.27711375,0.00041095,60]
[403025961,1769080258101,-500.0,0.00041095,60]
[403025962,1769080258110,-500.0,0.00041095,60]
[403025963,1769080258119,-500.0,0.00041095,60]
[403025964,1769080258127,-525.56028554,0.00041095,60]
[403025965,1769080258136,-529.90027502,0.00041095,60]
[403025966,1769080258145,-500.0,0.00041095,60]
[403025967,1769080258155,-500.0,0.00041095,60]
[403025968,1769080258164,-500.0,0.00041095,60]
[403025969,1769080258173,-554.18,0.00041095,60]
[403025970,1769080258182,-500.0,0.00041095,60]
[403025971,1769080258191,-262.01645536,0.00041095,60]
[403025972,1769080258200,-500.0,0.00041095,60]
[403025973,1769080258210,-500.0,0.00041095,60]
[403025974,1769080258219,-500.0,0.00041095,60]
[403025975,1769080258229,-500.0,0.00041095,60]
[403025976,1769080258238,-514.75796514,0.00041095,60]
[403025977,1769080258247,-500.0,0.00041095,60]
[403025978,1769080258256,-505.32,0.00041095,60]
[403025979,1769080258265,-500.0,0.00041095,60]
[403025980,1769080258274,-500.0,0.00041095,60]
[403025981,1769080258283,-525.97769512,0.00041095,60]
[403025982,1769080258293,-500.0,0.00041095,60]
[403025983,1769080258302,-500.0,0.00041095,60]
[403025984,1769080258311,-503.02617468,0.00041095,60]
[403025985,1769080258320,-500.0,0.00041095,60]
[403025986,1769080258329,-500.0,0.00041095,60]
[403025987,1769080258339,-500.0,0.00041095,60]
[403025988,1769080258348,-505.09429199,0.00041095,60]
[403025989,1769080258357,-500.0,0.00041095,60]
[403025990,1769080258367,-500.0,0.00041095,60]
[403025991,1769080258376,-500.0,0.00041095,14]
[403025992,1769080258385,-500.0,0.00041095,60]
[403025993,1769080258394,-872.52,0.00041095,60]
[403025994,1769080258403,-500.0,0.00041095,60]
[403025995,1769080258412,-500.0,0.00041095,60]
[403025996,1769080258422,-740.43,0.00041095,60]
[403025997,1769080258437,-500.0,0.00041095,60]
[403025998,1769080258447,-514.55420627,0.00041095,60]
[403025999,1769080258456,-509.90876759,0.00041095,60]
[403026000,1769080258466,-500.0,0.00041095,60]
[403026001,1769080258475,-500.0,0.00041095,60]
[403026002,1769080258484,-500.0,0.00041095,60]
[403026003,1769080258493,-500.0,0.00041095,60]
[403026004,1769080258503,-500.0,0.00041095,60]
[403026005,1769080258512,-186.627361,0.00041095,60]
[403026006,1769080258522,-500.0,0.00041095,60]
[403026007,1769080258535,-500.0,0.00041095,60]
[403026008,1769080258545,-623.83,0.00041095,60]
[403026009,1769080258554,-500.0,0.00041095,60]
[403026010,1769080258564,-500.0,0.00041095,60]
[403026011,1769080258573,-500.0,0.00041095,60]
[403026012,1769080258583,-500.0,0.00041095,60]
[403026013,1769080258592,-500.0,0.00041095,60]
[403026014,1769080258602,-500.0,0.00041095,60]
[403026015,1769080258611,-505.12072335,0.00041095,60]
[403026016,1769080258621,-500.0,0.00041095,60]
[403026017,1769080258631,-500.0,0.00041095,60]
[403026018,1769080258640,-500.0,0.00041095,60]
[403026019,1769080258649,-505.68114477,0.00041095,60]
[403026020,1769080258659,-559.41,0.00041095,60]
[403026021,1769080258668,-500.0,0.00041095,60]
[403026022,1769080258678,-500.0,0.00041095,60]
[403026023,1769080258687,-500.0,0.00041095,60]
[403026024,1769080258697,-500.0,0.00041095,60]
[403026025,1769080258706,-516.2846152,0.00041095,60]
[403026026,1769080258716,-348.37700633,0.00041095,60]
[403026027,1769080258725,-500.0,0.00041095,60]
[403026028,1769080258735,-500.0,0.00041095,60]
[403026029,1769080258745,-500.0,0.00041095,60]
[403026030,1769080258754,-500.0,0.00041095,60]
[403026031,1769080258763,-500.0,0.00041095,60]
[403026032,1769080258772,-500.0,0.00041095,60]
[403026033,1769080258781,-500.0,0.00041095,60]
[403026034,1769080258791,-500.0,0.00041095,60]
[403026035,1769080258800,-500.0,0.00041095,60]
[403026036,1769080258809,-500.0,0.00041095,60]
[403026037,1769080258818,-510.37754325,0.00041095,60]
[403026038,1769080258833,-500.0,0.00041095,60]
[403026039,1769080258842,-500.0,0.00041095,60]
[403026040,1769080258851,-507.27976599,0.00041095,60]
[403026041,1769080258860,-514.38758087,0.00041095,60]
[403026042,1769080258869,-500.0,0.00041095,60]
[403026043,1769080258878,-500.0,0.00041095,60]
[403026044,1769080258887,-500.0,0.00041095,60]
[403026045,1769080258896,-500.0,0.00041095,60]
[403026046,1769080258904,-500.0,0.00041095,60]
[403026047,1769080258913,-500.0,0.00041095,60]
[403026048,1769080258922,-501.27,0.00041095,60]
[403026049,1769080258930,-503.95656554,0.00041095,60]
[403026050,1769080258939,-500.0,0.00041095,60]
[403026051,1769080258948,-551.99057095,0.00041095,60]
[403026052,1769080258956,-500.0,0.00041095,60]
[403026053,1769080258966,-500.73105396,0.00041095,30]
[403026054,1769080258975,-500.0,0.00041095,60]
[403026055,1769080258984,-500.0,0.00041095,60]
[403026056,1769080258993,-504.1702539,0.00041095,60]
[403026057,1769080259002,-500.0,0.00041095,60]
[403026058,1769080259012,-500.0,0.00041095,60]
[403026059,1769080259022,-505.08328639,0.00041095,60]
[403026060,1769080259032,-500.0,0.00041095,60]
[403026061,1769080259042,-500.0,0.00041095,60]
[403026062,1769080259052,-500.0,0.00041095,60]
[403026063,1769080259061,-500.0,0.00041095,60]
[403026064,1769080259071,-202.0229363,0.00041095,60]
[403026065,1769080259080,-523.51,0.00041095,60]
[403026066,1769080259090,-515.61626749,0.00041095,60]
[403026067,1769080259100,-500.0,0.00041095,60]
[403026068,1769080259109,-500.0,0.00041095,60]
[403026069,1769080259119,-500.0,0.00041095,60]
[403026070,1769080259129,-500.0,0.00041095,60]
[403026071,1769080259139,-500.0,0.00041095,60]
[403026072,1769080259149,-500.0,0.00041095,60]
[403026073,1769080259158,-509.36461696,0.00041095,60]
[403026074,1769080259168,-500.0,0.00041095,60]
[403026075,1769080259178,-500.0,0.00041095,60]
[403026076,1769080259188,-500.0,0.00041095,60]
[403026077,1769080259199,-568.92,0.00041095,60]
[403026078,1769080259209,-500.0,0.00041095,60]
[403026079,1769080259219,-500.0,0.00041095,60]
[403026080,1769080259229,-500.0,0.00041095,60]
[403026081,1769080259239,-500.0,0.00041095,60]
[403026082,1769080259249,-500.0,0.00041095,60]
[403026083,1769080259259,-511.33330241,0.00041095,60]
[403026084,1769080259268,-551.66120533,0.00041095,60]
[403026085,1769080259279,-512.63667461,0.00041095,60]
[403026086,1769080259289,-500.0,0.00041095,60]
[403026087,1769080259303,-500.0,0.00041095,60]
[403026088,1769080259313,-500.0,0.00041095,60]
[403026089,1769080259323,-500.0,0.00041095,60]
[403026090,1769080259333,-500.0,0.00041095,60]
[403026091,1769080259343,-505.94947193,0.00041095,60]
[403026092,1769080259353,-500.0,0.00041095,60]
[403026093,1769080259363,-500.0,0.00041095,60]
[403026094,1769080259373,-500.0,0.00041095,60]
[403026095,1769080259383,-500.0,0.00041095,60]
[403026096,1769080259393,-500.0,0.00041095,60]
[403026097,1769080259404,-500.0,0.00041095,60]
[403026098,1769080259414,-505.51004541,0.00041095,60]
[403026099,1769080259426,-500.0,0.00041095,60]
[403026100,1769080259438,-500.0,0.00041095,60]
[403026101,1769080259447,-500.0,0.00041095,60]
[403026102,1769080259458,-500.0,0.00041095,60]
[403026103,1769080259469,-500.0,0.00041095,60]
[403026104,1769080259479,-500.0,0.00041095,60]
[403026105,1769080259489,-543.87688227,0.00041095,60]
[403026106,1769080259500,-506.68880557,0.00041095,60]
[403026107,1769080259513,-500.0,0.00041095,60]
[403026108,1769080259523,-500.0,0.00041095,60]
[403026109,1769080259533,-500.0,0.00041095,60]
[403026110,1769080259543,-500.0,0.00041095,60]
[403026111,1769080259553,-506.80159395,0.00041095,60]
[403026112,1769080259564,-500.0,0.00041095,60]
[403026113,1769080259574,-500.0,0.00041095,60]
[403026114,1769080259584,-551.81185916,0.00041095,60]
[403026115,1769080259594,-506.82105928,0.00041095,60]
[403026116,1769080259604,-511.28848958,0.00041095,60]
[403026117,1769080259615,-205.87893268,0.00041095,60]
[403026118,1769080259625,-500.0,0.00041095,60]
[403026119,1769080259635,-561.2272748,0.00041095,60]
[403026120,1769080259646,-504.5852596,0.00041095,60]
[403026121,1769080259657,-500.0,0.00041095,60]
[403026122,1769080259667,-500.0,0.00041095,60]
[403026123,1769080259678,-500.0,0.00041095,60]
[403026124,1769080259689,-500.0,0.00041095,60]
[403026125,1769080259699,-500.0,0.00041095,60]
[403026126,1769080259710,-500.0,0.00041095,60]
[403026127,1769080259721,-847.95,0.00041095,60]
[403026128,1769080259731,-500.0,0.00041095,60]
[403026129,1769080259741,-515.70096681,0.00041095,60]
[403026130,1769080259751,-500.0,0.00041095,60]
[403026131,1769080259761,-500.0,0.00041095,60]
[403026132,1769080259771,-500.0,0.00041095,60]
[403026133,1769080259781,-500.0,0.00041095,60]
[403026134,1769080259791,-500.0,0.00041095,60]
[403026135,1769080259801,-500.0,0.00041095,60]
[403026136,1769080259811,-373.55,0.00041095,2]
[403026137,1769080259820,-542.76,0.00041095,60]
[403026138,1769080259830,-500.0,0.00041095,60]
[403026139,1769080259841,-500.0,0.00041095,60]
[403026140,1769080259850,-500.0,0.00041095,60]
[403026141,1769080259861,-500.0,0.00041095,60]
[403026142,1769080259873,-547.94447382,0.00041095,60]
[403026143,1769080259884,-510.34535355,0.00041095,60]
[403026144,1769080259894,-500.0,0.00041095,60]
[403026145,1769080259904,-509.36091196,0.00041095,60]
[403026146,1769080259915,-500.0,0.00041095,60]
[403026147,1769080259926,-500.0,0.00041095,60]
[403026148,1769080259936,-500.0,0.00041095,60]
[403026149,1769080259947,-500.0,0.00041095,60]
[403026150,1769080259958,-562.46124736,0.00041095,60]
[403026151,1769080259969,-500.0,0.00041095,60]
[403026152,1769080259978,-500.0,0.00041095,60]
[403026153,1769080259989,-500.0,0.00041095,60]
[403026154,1769080259999,-500.0,0.00041095,60]
[403026155,1769080260009,-500.0,0.00041095,60]
[403026156,1769080260019,-500.0,0.00041095,60]
[403026157,1769080260030,-500.0,0.00041095,60]
[403026158,1769080260042,-500.0,0.00041095,60]
[403026159,1769080260053,-500.0,0.00041095,60]
[403026160,1769080260068,-500.0,0.00041095,60]
[403026161,1769080260079,-500.0,0.00041095,60]
[403026162,1769080260090,-500.0,0.00041095,60]
[403026163,1769080260101,-500.0,0.00041095,60]
[403026164,1769080260112,-500.0,0.00041095,60]
[403026165,1769080260123,-576.47,0.00041095,60]
[403026166,1769080260133,-531.41210819,0.00041095,60]
[403026167,1769080260144,-522.34,0.00041095,60]
[403026168,1769080260154,-524.73,0.00041095,60]
[403026169,1769080260164,-500.0,0.00041095,60]
[403026170,1769080260174,-500.0,0.00041095,60]
[403026171,1769080260185,-500.0,0.00041095,60]
[403026172,1769080260196,-500.0,0.00041095,60]
[403026173,1769080260206,-541.49,0.00041095,60]
[403026174,1769080260216,-500.0,0.00041095,60]
[403026175,1769080260227,-500.0,0.00041095,60]
[403026176,1769080260238,-503.87289871,0.00041095,60]
[403026177,1769080260248,-500.0,0.00041095,60]
[403026178,1769080260258,-500.0,0.00041095,60]
[403026179,1769080260269,-500.0,0.00041095,60]
[403026180,1769080260279,-500.0,0.00041095,60]
[403026181,1769080260289,-500.0,0.00041095,60]
[403026182,1769080260299,-500.0,0.00041095,60]
[403026183,1769080260309,-500.0,0.00041095,60]
[403026184,1769080260319,-205.61576525,0.00041095,60]
[403026185,1769080260329,-500.0,0.00041095,60]
[403026186,1769080260339,-500.0,0.00041095,60]
[403026187,1769080260348,-508.3645249,0.00041095,60]
[403026188,1769080260358,-500.0,0.00041095,60]
[403026189,1769080260369,-500.0,0.00041095,60]
[403026190,1769080260379,-500.0,0.00041095,60]
[403026191,1769080260389,-500.0,0.00041095,60]
[403026192,1769080260398,-500.0,0.00041095,60]
[403026193,1769080260408,-500.0,0.00041095,60]
[403026194,1769080260418,-528.63,0.00041095,60]
[403026195,1769080260429,-500.0,0.00041095,60]
[403026196,1769080260442,-500.0,0.00041095,60]
[403026197,1769080260452,-500.0,0.00041095,60]
[403026198,1769080260462,-500.0,0.00041095,60]
[403026199,1769080260473,-500.0,0.00041095,60]
[403026200,1769080260483,-500.0,0.00041095,60]
[403026201,1769080260493,-500.0,0.00041095,60]
[403026202,1769080260504,-513.14143283,0.00041095,60]
[403026203,1769080260514,-500.0,0.00041095,60]
[403026204,1769080260524,-331.05386455,0.00041095,60]
[403026205,1769080260533,-500.0,0.00041095,60]
[403026206,1769080260543,-500.0,0.00041095,60]
[403026207,1769080260553,-514.737247,0.00041095,60]
[403026208,1769080260562,-500.0,0.00041095,60]
[403026209,1769080260572,-500.0,0.00041095,60]
[403026210,1769080260582,-95.14076106,0.00041095,60]
[403026211,1769080261284,-365.6300001,0.00041095,60]
[403026212,1769080261295,-90.15923884,0.00041095,60]
[403026213,1769080261305,-510.24726085,0.00041095,60]
[403026214,1769080261314,-207.73192519,0.00041095,60]
[403026215,1769080261333,-151.0,0.00036986,31]
[403026216,1769080261342,-151.0,0.0004,120]
[403026217,1769080261352,-292.26807481,0.00041095,60]
[403026218,1769080261362,-500.0,0.00041095,60]
[403026219,1769080261371,-500.0,0.00041095,60]
[403026220,1769080261381,-500.0,0.00041095,60]
[403026221,1769080261391,-500.0,0.00041095,60]
[403026222,1769080261400,-500.0,0.00041095,60]
[403026223,1769080261409,-500.0,0.00041095,60]
[403026224,1769080261418,-505.5837626,0.00041095,60]
[403026225,1769080261431,-500.0,0.00041095,60]
[403026226,1769080261440,-502.21932543,0.00041095,60]
[403026227,1769080261449,-500.0,0.00041095,60]
[403026228,1769080261458,-500.0,0.00041095,60]
[403026229,1769080261468,-500.0,0.00041095,60]
[403026230,1769080261477,-500.0,0.00041095,60]
[403026231,1769080261486,-133.97574971,0.00041095,60]
[403026296,1769081301545,2736.12779434,0.0001,2]
[403026298,1769081313730,724.90497667,0.000134,2]